[Event "4NCL 2023-2024"]
[Site "Daventry"]
[Date "2024.05.04"]
[Round "9.6"]
[White "Murphy, Conor E"]
[Black "Wall, Tim P"]
[Result "1-0"]
[ECO "B13"]
[WhiteElo "2478"]
[BlackElo "2203"]
[Annotator "TA"]
[PlyCount "83"]
[EventDate "2023.11.11"]
[EventType "team-tourn"]
[EventCountry "ENG"]
[SourceTitle "playchess.com"]
[Source "ChessBase"]
[SourceQuality "1"]
[TimeControl "40/6000+30:3000+30"]

{[%evp 11,83,12,22,27,29,20,23,19,24,30,29,22,29,27,35,15,23,0,0,-6,0,0,-26,-25,0,-23,-22,-27,-27,-34,-28,-40,-31,-28,-25,-33,-34,-36,-27,-37,-43,-33,-5,-104,-11,-10,-17,-10,0,0,4,9,102,101,112,82,111,104,129,120,243,258,399,397,387,303,319,298,366,306,321,316,307,314]} 1. e4 {[%emt 0:02:46]} c6 {[%emt 0:04:06]} 2. d4 {[%emt 0:00:21]} d5 {[%emt 0:00:28]} 3. exd5 {[%emt 0:00:14]} cxd5 {[%emt 0:00:13]} 4. Bd3 {[%emt 0:00:06]} Nf6 {[%emt 0:00:56]} 5. c3 {[%emt 0:00:29]} Bg4 {[%emt 0:00:50]} 6. Qb3 {[%emt 0:02:03]} Qc7 {[%emt 0:00:34]} 7. h3 {[%emt 0:01:53]} Bh5 {[%emt 0:04:04]} 8. Ne2 {[%emt 0:00:45]} Bg6 {[%emt 0:05:07]} 9. Bf4 {[%emt 0:05:52] White has an edge.} Qd7 {[%emt 0:01:46]} 10. Bxg6 {[%emt 0:03:47]} hxg6 {[%emt 0:00:09]} 11. Nd2 {[%emt 0:06:24]} Nc6 {[%emt 0:00:21]} 12. O-O {[%emt 0:00:40]} e6 {[%emt 0:01:25]} 13. Nf3 {[%emt 0:03:51]} Be7 {[%emt 0:09:43]} 14. Nc1 {[%emt 0:06:07]} Ne4 {[%emt 0:26:26]} 15. Nd3 {[%emt 0:01:36]} f6 {[%emt 0:02:56]} 16. Rfe1 {[%emt 0:05:03]} g5 {[%emt 0:01:44]} 17. Bh2 {[%emt 0:00:51]} O-O-O {[%emt 0:05:25]} 18. c4 {[%emt 0:11:34]} Bd6 {[%emt 0:03:05]} 19. Bxd6 {[%emt 0:07:18]} Qxd6 {[%emt 0:00:13]} 20. Rac1 {[%emt 0:03:29]} Kb8 {[%emt 0:03:56][%cal Og5g4]} 21. cxd5 {[%emt 0:13:15]} exd5 {[%emt 0:00:14][%cal Og5g4]} 22. Nc5 {[%emt 0:00:48]} Nxc5 {[%emt 0:01:07]} 23. dxc5 {[%emt 0:00:08]} Qd7 {[%emt 0:07:53]} 24. Rcd1 {[%emt 0:05:45]} d4 {[%emt 0:09:40] ...g4 would now be deadly.} 25. Re4 {[%emt 0:11:12]} Qf5 {[%emt 0:05:09]} 26. Qd3 {[%emt 0:03:59][%cal Rf3d4]} Qxc5 {[%emt 0:04:02]} 27. a3 {[%emt 0:02:36]} (27. Nxd4 $11 Rxd4 28. Rxd4 Qxd4 29. Qxd4 Nxd4 30. Rxd4) 27... f5 {[%emt 0:03:46]} (27... Qd5 $17 28. b4 Rd7) 28. Ree1 $1 $11 {[%emt 0:00:56]} g4 {[%emt 0:01:15]} 29. Ng5 {[%emt 0:00:30]} Qd5 {[%emt 0:03:45]} 30. Qg3+ {[%emt 0:01:24]} Kc8 {[%emt 0:01:07]} 31. hxg4 {[%emt 0:01:05]} f4 {[%emt 0:01:37]} 32. Qxf4 $16 {[%emt 0:00:07]} Rdf8 {[%emt 0:00:13]} 33. Qd2 $40 {[%emt 0:01:19][%mdl 128] White attacks with force. Active counter play!} Qd6 {[%emt 0:00:38] [#] Threatens to win with ...Qh2+.} 34. Nh3 $1 {[%emt 0:01:22]} Rh4 {[%emt 0:01:26]} 35. Qg5 {[%emt 0:00:47]} Rfh8 {[%emt 0:00:07] A mistake that costs the game.} (35... Rh6 $16 {might work better.} 36. Re4 (36. Qxg7 Rg6 $16) 36... Rg6) 36. Qxg7 $18 {[%emt 0:03:30]} d3 {[%emt 0:00:17]} (36... a6 $142 37. Qg5 Kb8) 37. Re3 {[%emt 0:01:33]} d2 {[%emt 0:00:21]} 38. Qc3 {[%emt 0:00:29]} Rd8 {[%emt 0:00:30]} 39. Re2 {[%emt 0:00:28][%cal Re2d2]} Qd4 {[%emt 0:02:10]} 40. Qxd4 {[%emt 0:01:55]} ({Not} 40. Qxd2 Qxg4 (40... Rxg4 $2 {loses.} 41. Qxd4 Nxd4 42. Rc1+ Kb8 43. Re3 $18) 41. Qc2 Rdh8 $18 (41... Rxh3 $2 {too greedy.} 42. Rxd8+ Kxd8 43. Qd1+ Qd4 44. Rd2 $18)) (40. Rdxd2 Qxc3 41. Rxd8+ (41. bxc3 Rxd2 42. Rxd2 Rxg4 $16) 41... Nxd8 $18) 40... Nxd4 {[%emt 0:00:27]} 41. Rexd2 {[%emt 0:04:18]} Rxg4 {[%emt 0:00:08] [#] White must now prevent ...Nf3+.} 42. Kf1 {[%emt 0:00:47] Weighted Error Value: White=0.14 (very precise) /Black=0.26 (precise) .  Mistake:       	White=1     	Black=4      Inaccurate:     	White=1     	Black=2      OK:         	White=17    	Black=13     Best:        	White=2     	Black=1      Strong:       	White=2     	---} 1-0

[Event "4NCL 2023-2024"]
[Site "Daventry"]
[Date "2024.05.04"]
[Round "9.7"]
[White "Weller, Jean-Luc"]
[Black "Turner, Matthew J"]
[Result "0-1"]
[ECO "A17"]
[WhiteElo "2211"]
[BlackElo "2454"]
[Annotator "TA"]
[PlyCount "74"]
[EventDate "2023.11.11"]
[EventType "team-tourn"]
[EventCountry "ENG"]
[SourceTitle "playchess.com"]
[Source "ChessBase"]
[SourceQuality "1"]
[TimeControl "40/6000+30:3000+30"]

{[%evp 9,74,-44,-45,-40,-34,-32,-54,-34,-30,-33,0,0,0,0,16,10,0,-17,-27,-27,-43,-22,-37,-37,-54,-91,-95,-85,-77,-71,-75,-73,-81,-154,-152,-136,-126,-204,-107,-112,-112,-125,-117,-108,-92,-207,-209,-205,-195,-208,-203,-248,-251,-245,-251,-422,-405,-559,-562,-650,-641,-610,-312,-29985,-29986,-29986,-29987]} 1. c4 {[%emt 0:00:03]} Nf6 {[%emt 0:00:22]} 2. Nc3 {[%emt 0:00:06]} e6 {[%emt 1:41:08]} 3. g3 {[%emt 0:02:22]} d5 {[%emt 0:00:00]} 4. Bg2 {[%emt 0:02:12]} d4 {[%emt 0:00:00]} 5. Ne4 {[%emt 0:01:14]} Nxe4 {[%emt 0:00:00]} 6. Bxe4 {[%emt 0:00:03]} Be7 {[%emt 0:00:00]} 7. f4 {[%emt 0:09:11]} Nd7 {[%emt 0:00:00]} 8. Nf3 {[%emt 0:02:16][%cal Oe1g1] Black is slightly better.} Nc5 {[%emt 0:00:00]} 9. Bb1 {[%emt 0:00:52]} O-O {[%emt 0:00:00]} 10. b4 {[%emt 0:14:32]} Nd7 {[%emt 0:00:00]} 11. Bb2 {[%emt 0:07:14]} Bf6 {[%emt 0:00:00]} 12. Qc2 {[%emt 0:06:23][%csl Gb1][%cal Rc2h7]} g6 {[%emt 0:00:00]} 13. Bxd4 {[%emt 0:00:15]} Bxd4 {[%emt 0:00:00]} 14. Nxd4 {[%emt 0:00:06]} e5 {[%emt 0:00:00]} 15. Nf3 {[%emt 0:11:55]} exf4 {[%emt 0:00:00]} 16. Qc3 {[%emt 0:00:34] [#]} a5 $1 {[%emt 0:00:00]} 17. bxa5 {[%emt 0:07:17]} (17. b5 fxg3) 17... fxg3 {[%emt 0:00:00]} 18. hxg3 {[%emt 0:00:02]} Qf6 {[%emt 0:00:00]} (18... Re8 {keeps more tension.} 19. Bc2 Nf6 20. O-O-O Ng4) 19. Qxf6 {[%emt 0:05:20]} Nxf6 {[%emt 0:00:00]} 20. Nd4 {[%emt 0:00:05]} Rxa5 {[%emt 0:00:00]} 21. Nb3 {[%emt 0:00:03]} (21. Nb5 $142) 21... Rg5 $17 {[%emt 0:00:00]} 22. Kf2 {[%emt 0:07:20]} Re8 {[%emt 0:00:00]} 23. Bd3 {[%emt 0:03:01]} (23. a4 $17) 23... Bf5 {[%emt 0:00:00]} (23... Ng4+ $19 24. Kg2 Ne5) 24. Bxf5 {[%emt 0:03:08]} Rxf5+ {[%emt 0:00:00]} (24... gxf5 $6 25. d3 $11) 25. Ke1 {[%emt 0:00:08]} Rg5 {[%emt 0:00:00]} 26. Rg1 {[%emt 0:11:34]} Ne4 {[%emt 0:00:00] Black is much more active. The white rooks are passive.} 27. Nd4 {[%emt 0:03:21]} (27. d3 $17 {keeps fighting.} Rxg3 (27... Nxg3 28. Kf2 $15) 28. Rxg3 Nxg3 29. Kf2) 27... Rxg3 $19 {[%emt 0:00:00]} 28. Rxg3 {[%emt 0:00:12]} Nxg3 {[%emt 0:00:00][%mdl 4096] Endgame. KRN-KRN} 29. e3 {[%emt 0:00:17]} h5 {[%emt 0:00:00]} 30. c5 {[%emt 0:08:16]} h4 {[%emt 0:00:00]} 31. Nf3 {[%emt 0:01:17]} h3 {[%emt 0:00:00][%cal Og6g5]} 32. Rb1 $2 {[%emt 0:01:17] [#]} (32. Kf2 Ne4+ 33. Ke2) 32... g5 $1 {[%emt 0:00:00][%mdl 512]} 33. Rxb7 {[%emt 0:01:51]} (33. c6 bxc6) 33... g4 {[%emt 0:00:00]} 34. Nh2 {[%emt 0:00:34]} f5 {[%emt 0:00:00] ...Ne4 is the strong threat.} 35. Nf1 {[%emt 0:02:27]} f4 {[%emt 0:00:00]} 36. Nxg3 {[%emt 0:00:34]} (36. Nh2 $19 fxe3 37. Nxg4) 36... fxg3 {[%emt 0:00:00]} 37. Rb4 {[%emt 0:01:38]} h2 {[%emt 0:00:00] Weighted Error Value: White=0.45/Black=0.24 (precise) .  Mistake:       	White=4     	Black=1      Inaccurate:     	White=2     	Black=1      OK:         	White=14    	Black=11     Best:        	White=3     	Black=4} 0-1

[Event "4NCL 2023-2024"]
[Site "Daventry"]
[Date "2024.05.04"]
[Round "9.8"]
[White "Hunt, Harriet V"]
[Black "Cosman, Andreea-Marioara"]
[Result "1/2-1/2"]
[ECO "B23"]
[WhiteElo "2316"]
[BlackElo "2180"]
[Annotator "TA"]
[PlyCount "159"]
[EventDate "2023.11.11"]
[EventType "team-tourn"]
[EventCountry "ENG"]
[SourceTitle "playchess.com"]
[Source "ChessBase"]
[SourceQuality "1"]
[TimeControl "40/6000+30:3000+30"]

{[%evp 59,159,16,22,0,0,0,10,10,35,0,0,0,0,0,0,0,0,0,0,0,146,148,145,139,131,132,196,145,208,202,248,258,309,310,272,258,436,463,463,413,641,595,533,529,410,374,397,368,345,357,642,472,441,369,402,168,168,168,168,129,114,71,71,46,76,50,50,35,66,66,67,20,245,245,420,245,434,448,1834,1612,2076,1696,1219,8,8,0,0,0,32,32,1101,580,29975,29975,29968,8,8,0,12797,0,8,0]} 1. e4 {[%emt 0:00:02]} c5 {[%emt 0:00:05]} 2. Nc3 {[%emt 0:00:11]} d6 {[%emt 0:00:06]} 3. f4 {[%emt 0:00:14]} Nc6 {[%emt 0:00:24]} 4. Nf3 {[%emt 0:00:22]} g6 {[%emt 0:01:35]} 5. Bc4 {[%emt 0:00:49]} Bg7 {[%emt 0:01:41]} 6. O-O {[%emt 0:00:24]} e6 {[%emt 0:06:58]} 7. d4 {[%emt 0:02:03] B23: Closed Sicilian: Lines without g3.} cxd4 {[%emt 0:02:31]} 8. Nb5 {[%emt 0:00:08]} Nge7 {[%emt 0:06:48]} 9. Bb3 {[%emt 0:01:24]} O-O {[%emt 0:04:01]} 10. Nbxd4 {[%emt 0:01:34]} d5 {[%emt 0:07:09]} 11. e5 {[%emt 0:06:08]} Nxd4 {[%emt 0:07:36]} 12. Nxd4 {[%emt 0:00:20]} Nc6 {[%emt 0:00:07]} 13. Be3 {[%emt 0:05:49]} Bd7 {[%emt 0:07:01]} 14. Qe2 $146 {[%emt 0:09:07]} ({Predecessor:} 14. Qd2 Nxd4 15. Bxd4 Qc7 16. Rae1 a5 17. c3 Bb5 18. Rf3 Bc4 19. Bc2 Bxa2 20. g4 f6 21. exf6 Bxf6 22. Rxe6 Bg5 23. Qe1 Qf7 24. Qe5 {1-0 Krzywda,A (2115)-Trybus,D (1889) Poronin Tatra Limba op 2021 (4)}) 14... a6 {[%emt 0:05:52]} 15. a4 {[%emt 0:11:05]} Na5 {[%emt 0:05:17]} 16. Rfd1 {[%emt 0:06:03]} Rc8 {[%emt 0:06:26]} 17. Qf2 {[%emt 0:04:55]} Nc4 {[%emt 0:03:01]} 18. Bxc4 {[%emt 0:01:06]} Rxc4 {[%emt 0:00:14]} 19. a5 {[%emt 0:01:31]} f6 {[%emt 0:04:57]} 20. exf6 {[%emt 0:11:40]} Qxf6 {[%emt 0:00:08]} 21. c3 {[%emt 0:02:47]} e5 {[%emt 0:08:58]} 22. fxe5 {[%emt 0:00:35]} Qxe5 {[%emt 0:01:28]} 23. Qd2 {[%emt 0:00:41]} Qh5 {[%emt 0:03:24]} 24. Rf1 {[%emt 0:04:24]} Rcc8 {[%emt 0:03:41]} 25. Nf3 {[%emt 0:05:51]} Rce8 {[%emt 0:05:45]} 26. Rae1 {[%emt 0:03:19]} Bc6 {[%emt 0:05:17]} 27. Bc5 {[%emt 0:07:33]} Bh6 {[%emt 0:01:19]} 28. Qf2 {[%emt 0:13:19]} Rxe1 {[%emt 0:02:19]} 29. Rxe1 {[%emt 0:00:08]} Rf7 {[%emt 0:03:37]} 30. Bd4 {[%emt 0:01:36]} Bf4 {[%emt 0:00:37]} 31. Qh4 {[%emt 0:03:10]} Qxh4 {[%emt 0:02:28]} 32. Nxh4 {[%emt 0:00:01]} Bb5 {[%emt 0:03:03]} 33. Nf3 {[%emt 0:00:52]} Bd3 {[%emt 0:01:02]} 34. Be3 {[%emt 0:04:29]} Bd6 {[%emt 0:01:10]} 35. b4 {[%emt 0:00:49]} Be4 {[%emt 0:00:53]} 36. Ng5 {[%emt 0:01:12]} Re7 {[%emt 0:00:33]} 37. Bd2 {[%emt 0:01:25]} Be5 {[%emt 0:00:46]} 38. g3 {[%emt 0:00:42]} Bf6 {[%emt 0:00:26]} 39. Kf2 {[%emt 0:01:08]} Rc7 {[%emt 0:00:37]} (39... Bf5 $11 {remains equal.}) 40. Nxe4 $16 {[%emt 0:00:49]} dxe4 {[%emt 0:00:07]} 41. Rxe4 {[%emt 0:02:52]} Kf7 {[%emt 0:01:51]} (41... Bxc3 $2 42. Bxc3 Rxc3 43. Re7) 42. c4 {[%emt 0:01:23]} g5 {[%emt 0:01:26]} (42... Rd7 $16 43. Ke2 Rd8) 43. g4 {[%emt 0:01:24]} ({White should try} 43. h3 $18) 43... Kg6 {[%emt 0:04:51]} (43... Rc8 $16 44. Ke2 Rd8) 44. h3 {[%emt 0:02:10]} h5 {[%emt 0:00:44]} 45. Ke2 {[%emt 0:04:00]} Rc6 {[%emt 0:10:06]} 46. c5 {[%emt 0:04:37]} hxg4 {[%emt 0:01:03]} 47. hxg4 {[%emt 0:00:04]} Kf7 $2 {[%emt 0:02:03]} (47... Rc7 {is a better defense.} 48. Re6 Rc6) 48. Kd3 $18 {[%emt 0:03:22]} Rc8 {[%emt 0:00:23]} 49. Be3 {[%emt 0:02:45]} Rh8 {[%emt 0:02:07]} (49... Rc6 $142 50. Kc4 Bd8) 50. Bd4 $18 {[%emt 0:02:37]} Rd8 {[%emt 0:02:56]} 51. Kc4 {[%emt 0:00:18]} Be7 {[%emt 0:00:07]} 52. Re5 {[%emt 0:02:32]} Rc8 {[%emt 0:02:49]} 53. Be3 {[%emt 0:04:32]} Rg8 {[%emt 0:04:37]} 54. b5 {[%emt 0:02:15]} axb5+ $2 {[%emt 0:00:08]} (54... Rg6 55. Bd2 Bd8) 55. Kxb5 $18 {[%emt 0:00:04]} Rg6 {[%emt 0:00:08]} 56. Re4 {[%emt 0:01:14]} Ke8 {[%emt 0:00:33]} 57. Kc4 {[%emt 0:01:44]} (57. c6 $142 Rxc6 58. a6 (58. Bxg5 Rc5+ 59. Kb6 Rxg5 $17) 58... Rxa6 59. Bxg5) 57... Kd7 $18 {[%emt 0:04:44]} 58. Kd5 {[%emt 0:00:07]} Ra6 {[%emt 0:01:58]} 59. Rb4 {[%emt 0:03:31]} Kc8 {[%emt 0:00:14]} 60. Rb5 {[%emt 0:00:43]} Bd8 {[%emt 0:06:13]} 61. Bd2 {[%emt 0:00:10]} Rh6 {[%emt 0:01:20]} 62. Rb1 {[%emt 0:05:21]} Rh3 {[%emt 0:02:23]} 63. Ke4 {[%emt 0:00:58]} Rh2 {[%emt 0:02:13]} 64. Be3 {[%emt 0:02:50]} Ra2 {[%emt 0:03:48]} 65. Rb5 {[%emt 0:00:39]} (65. Rd1 $1 $14 {might be stronger.}) 65... Bxa5 $2 {[%emt 0:01:02]} (65... Ra3 $11) 66. Bxg5 $18 {[%emt 0:00:16]} Kc7 $2 {[%emt 0:00:07]} (66... Re2+ 67. Kf3 Ra2) 67. Kd5 $18 {[%emt 0:00:56]} Ra4 $2 {[%emt 0:00:23]} (67... Bd2) 68. Bf6 $18 {[%emt 0:01:10]} b6 {[%emt 0:02:42]} (68... Bd2 $142 69. Rb2 Be3) 69. g5 $18 {[%emt 0:03:40]} Rg4 {[%emt 0:00:11]} 70. Rb3 {[%emt 0:04:02]} bxc5 {[%emt 0:01:10]} 71. Rh3 $2 {[%emt 0:00:37]} ({White must play} 71. Be5+ $18 Kd8 72. Rb8+ (72. Kxc5 Rxg5 73. Kd4 Rg1 $11) 72... Kd7 73. Rb7+ (73. Kxc5 Rxg5 74. Rb7+ Ke6 $11) 73... Kc8 74. Kc6) 71... Bd2 $11 {[%emt 0:01:12]} 72. Rh7+ {[%emt 0:02:09]} Kb6 {[%emt 0:00:45]} 73. Bd8+ {[%emt 0:00:10]} Ka6 {[%emt 0:00:32]} 74. Kc6 {[%emt 0:01:51]} Ba5 $2 {[%emt 0:00:15][%mdl 8192]} (74... Bxg5 $14 75. Rg7 Bxd8 76. Rxg4 Ka5) 75. Bf6 {[%emt 0:00:33]} c4 {[%emt 0:00:38]} 76. Rh8 {[%emt 0:00:21]} Bb6 {[%emt 0:00:03]} 77. Rh3 $2 {[%emt 0:00:26]} (77. Rb8 {mates} Ka5 78. Rxb6 Ka4 79. Kd5 Rg2 80. Kxc4 Rg4+ 81. Kd5 Rg2 82. Ke6) 77... Ba5 $1 $11 {[%emt 0:01:04]} 78. Rh8 $2 {[%emt 0:00:06][%mdl 8192]} (78. Rh2 $11 c3 79. Rc2) 78... Bb6 $18 {[%emt 0:00:08]} 79. Rh3 $2 {[%emt 0:00:03]} (79. Rb8 $18 {[%cal Of6e7] Intending Be7! and mate.} Ka5 80. Rxb6) 79... Ba5 $1 $11 {[%emt 0:00:05]} 80. Rh8 {[%emt 0:01:33]} 1/2-1/2

[Event "4NCL 2023-2024"]
[Site "Daventry"]
[Date "2024.05.04"]
[Round "9.9"]
[White "Svane, Rasmus"]
[Black "Chow, Samuel"]
[Result "1/2-1/2"]
[ECO "E60"]
[WhiteElo "2635"]
[BlackElo "2355"]
[Annotator "TA"]
[PlyCount "48"]
[EventDate "2023.11.11"]
[EventType "team-tourn"]
[EventCountry "ENG"]
[SourceTitle "playchess.com"]
[Source "ChessBase"]
[SourceQuality "1"]
[TimeControl "40/6000+30:3000+30"]

{[%evp 9,48,14,25,0,20,24,25,26,23,30,11,16,35,27,17,19,39,21,60,62,68,59,145,161,167,173,163,173,394,387,330,368,318,218,285,0,-8,-395,-381,-355,-365]} 1. Nf3 {[%emt 0:00:20]} Nf6 {[%emt 0:00:21]} 2. d4 {[%emt 0:03:40]} g6 {[%emt 0:00:26]} 3. c4 {[%emt 0:01:33]} Bg7 {[%emt 0:00:29]} 4. e3 {[%emt 0:00:55]} O-O {[%emt 0:01:56]} 5. Be2 {[%emt 0:00:07]} c5 {[%emt 0:03:04]} 6. d5 {[%emt 0:07:07]} e6 {[%emt 0:05:06]} 7. Nc3 {[%emt 0:00:12]} exd5 {[%emt 0:00:21]} 8. cxd5 {[%emt 0:00:05] White has an edge.} d6 {[%emt 0:00:19]} 9. Nd2 {[%emt 0:04:24]} Na6 {[%emt 0:05:08]} 10. O-O {[%emt 0:06:59]} Nc7 {[%emt 0:02:09]} 11. e4 {[%emt 0:00:15]} Re8 {[%emt 0:00:59][%cal Ob7b5]} 12. a4 {[%emt 0:05:57]} b6 {[%emt 0:04:28]} 13. f3 {[%emt 0:09:11]} a6 {[%emt 0:20:03]} 14. Nc4 {[%emt 0:04:59]} Rb8 {[%emt 0:00:18]} 15. Bf4 $36 {[%emt 0:05:04][%cal Bc1f4,Bf4d6,Bd6c7][%mdl 2080] White is pushing. White is more active.} Nh5 {[%emt 0:08:48]} (15... Bf8 $14) 16. Bxd6 $16 {[%emt 0:20:49]} b5 {[%emt 0:01:36]} 17. axb5 {[%emt 0:00:41]} axb5 {[%emt 0:00:25]} 18. Ra7 $1 {[%emt 0:02:35]} bxc4 $2 {[%emt 0:17:23]} (18... Rb7) 19. Bxc7 $18 {[%emt 0:04:17]} Qg5 {[%emt 0:03:22][%cal Oc8h3] ...Bh3! is the strong threat.} 20. f4 {[%emt 0:11:51]} (20. Bxc4 Rxb2 21. Ne2 Bh3 $17) 20... Qh4 {[%emt 0:01:14] Hoping for ...Bd4+.} 21. Bxh5 {[%emt 0:00:29]} (21. Bxb8 $2 Bd4+ $19) 21... Rxb2 {[%emt 0:00:34]} 22. Bf3 $2 {[%emt 0:10:51]} ({White should play} 22. e5 $18 gxh5 23. Qc1) 22... Bxc3 $11 {[%emt 0:00:35]} 23. Qa4 $2 {[%emt 0:00:52][%mdl 8192] [#]} (23. Kh1 $1 $11 {and White is okay.}) 23... Bd7 $1 $19 {[%emt 0:04:37][%mdl 512]} 24. Qd1 {[%emt 0:04:54]} (24. Qxd7 {leads to mate.} Qf2+ 25. Rxf2 Rb1+) ({Worse is} 24. Qxc4 Bb5 $19 (24... Bd4+ $2 25. Kh1 $19) (24... Bd4+ 25. Kh1 $19)) 24... Bd4+ {[%emt 0:01:09][%mdl 32768] What a bad dream for White.   Weighted Error Value: White=0.67/Black=0.30.  Loses game:     	White=1     	---        Missed win:     	White=1     	---        Mistake:       	---       	Black=2      Inaccurate:     	White=1     	Black=2      OK:         	White=9     	Black=7      Best:        	White=3     	Black=2      Strong:       	White=1     	---        Brilliant:      	---       	Black=1     . An unexpected result.} 1/2-1/2

[Event "4NCL 2023-2024"]
[Site "Daventry"]
[Date "2024.05.04"]
[Round "9.10"]
[White "Townsend, M Paul"]
[Black "Shirov, Alexei"]
[Result "0-1"]
[ECO "A62"]
[WhiteElo "2153"]
[BlackElo "2668"]
[Annotator "TA"]
[PlyCount "116"]
[EventDate "2023.11.11"]
[EventType "team-tourn"]
[EventCountry "ENG"]
[SourceTitle "playchess.com"]
[Source "ChessBase"]
[SourceQuality "1"]
[TimeControl "40/6000+30:3000+30"]

{[%evp 21,116,33,52,39,34,38,71,50,107,96,97,106,116,22,16,22,14,0,0,0,0,0,0,10,29,0,0,0,0,-12,-23,-18,-16,-22,-12,-82,-71,-77,-73,-67,-58,-82,-51,-50,0,0,69,29,20,27,27,31,31,27,24,24,31,0,0,-10,-10,-10,-10,-10,-10,-10,-10,-16,-17,-17,-5,-5,-8,-8,-4,-4,-3,-16,-16,-16,-16,-20,-16,-23,-23,-23,-20,-44,-44,-83,-83,-83,-83,-105,-105,-29984,-29985]} 1. d4 {[%emt 0:00:05]} Nf6 {[%emt 0:00:05]} 2. c4 {[%emt 0:00:11]} e6 {[%emt 0:00:05]} 3. g3 {[%emt 0:00:30]} c5 {[%emt 0:03:38]} 4. d5 {[%emt 0:01:41]} exd5 {[%emt 0:00:28]} 5. cxd5 {[%emt 0:00:06]} g6 {[%emt 0:00:29]} 6. Nc3 {[%emt 0:00:27]} d6 {[%emt 0:02:55]} 7. Nf3 {[%emt 0:00:18]} Bg7 {[%emt 0:00:07]} 8. Bg2 {[%emt 0:00:07]} O-O {[%emt 0:00:13][%cal Bh8f8,Bf8e8,Be8e4,Be4d4][%mdl 32]} 9. O-O {[%emt 0:00:08]} Re8 {[%emt 0:02:48]} 10. Bf4 {[%emt 0:02:17]} a6 {[%emt 0:03:20]} 11. a4 {[%emt 0:00:11][%cal Ba2a4,Ba4b5][%mdl 32]} Ne4 {[%emt 0:12:56]} 12. Nxe4 {[%emt 0:01:05]} (12. Ra3 {simplifies} Bg4 13. h3 Nxc3 14. bxc3 Bxf3 15. Bxf3 Be5 16. Bxe5 Rxe5 17. a5) 12... Rxe4 {[%emt 0:00:07]} 13. Nd2 {[%emt 0:00:53]} Rd4 {[%emt 0:05:24]} 14. Ra3 {[%emt 0:12:26] White is better.} b5 {[%emt 0:20:12]} (14... Nd7 $14) 15. axb5 $16 {[%emt 0:19:00]} Bb7 {[%emt 0:00:38] [#]} 16. b6 $1 {[%emt 0:33:15]} a5 {[%emt 0:13:41][%cal Ob8d7] [#]} (16... Nd7 17. Bxd6) 17. Ra4 {[%emt 0:05:51]} ({White should try} 17. Qc2 $1 $16) 17... Rxa4 $11 {[%emt 0:12:51]} 18. Qxa4 {[%emt 0:00:48] Ne4 is the strong threat.} Nd7 $1 {[%emt 0:00:04]} 19. Nc4 {[%emt 0:08:55]} (19. Bxd6 $2 {loses.} Nxb6 20. Qb5 (20. Qf4 $2 g5 $19) 20... Qxd6 $19) 19... Nxb6 {[%emt 0:00:14]} 20. Nxb6 {[%emt 0:03:47]} Qxb6 {[%emt 0:00:06]} 21. b3 {[%emt 0:01:03]} ({Much worse is} 21. Qd7 Bxb2 22. Bxd6 Rd8 23. Bxc5 Rxd7 $17) 21... Bf6 {[%emt 0:09:17]} 22. h4 {[%emt 0:02:18]} h5 {[%emt 0:00:44]} 23. Bf3 {[%emt 0:00:52]} Qd8 {[%emt 0:04:42]} 24. Rd1 {[%emt 0:02:41]} Bc8 {[%emt 0:01:50]} 25. Qc6 {[%emt 0:02:23]} Ra6 {[%emt 0:00:15][%cal Ba8a6,Ba6b6,Bb6b3,Bb3d3][%mdl 32]} 26. Qb5 {[%emt 0:00:15]} Qd7 {[%emt 0:01:36]} 27. Qd3 {[%emt 0:05:42]} Rb6 {[%emt 0:00:37]} 28. Bd2 {[%emt 0:00:47]} (28. Rc1 $11 {remains equal.}) 28... a4 {[%emt 0:03:28]} 29. bxa4 {[%emt 0:00:32]} Qxa4 {[%emt 0:00:05]} 30. Rc1 {[%emt 0:01:22]} Bf5 {[%emt 0:05:20]} 31. e4 {[%emt 0:01:26]} Rb3 {[%emt 0:00:46]} 32. Qc2 {[%emt 0:00:27]} Bd7 {[%emt 0:02:34]} (32... Bg4 $15 33. Bxg4 hxg4) 33. Bd1 {[%emt 0:00:24]} c4 {[%emt 0:03:30]} 34. Qxc4 {[%emt 0:00:56]} Qxc4 {[%emt 0:00:47]} 35. Rxc4 {[%emt 0:00:02]} Rd3 {[%emt 0:00:08]} 36. Rc2 {[%emt 0:00:51]} Ba4 {[%emt 0:01:51]} 37. Rc8+ {[%emt 0:00:15]} Kg7 {[%emt 0:00:06]} 38. Bxa4 {[%emt 0:00:20]} Rxd2 {[%emt 0:00:05][%mdl 4096] Endgame. KRB-KRB} 39. Rc2 {[%emt 0:03:28]} Rd4 {[%emt 0:00:06]} 40. Bb3 {[%emt 0:00:27]} Rxe4 {[%emt 0:00:05]} 41. Kf1 {[%emt 0:51:33]} Rb4 {[%emt 0:50:17]} 42. Bc4 {[%emt 0:00:00]} Bd4 {[%emt 0:00:00]} 43. Ke2 {[%emt 0:00:00]} Kf6 {[%emt 0:00:00]} 44. Kd3 {[%emt 0:00:00]} Bc5 {[%emt 0:00:00]} 45. Ke4 {[%emt 0:00:00]} g5 {[%emt 0:00:00]} 46. hxg5+ {[%emt 0:00:00]} Kxg5 {[%emt 0:00:00]} 47. Kf3 {[%emt 0:00:00]} f5 {[%emt 0:00:00]} 48. Kg2 {[%emt 0:00:00]} f4 {[%emt 0:00:00]} 49. gxf4+ {[%emt 0:00:00]} Kxf4 {[%emt 0:00:00]} 50. Be2 {[%emt 0:00:00]} Kg5 {[%emt 0:00:00]} 51. Bc4 {[%emt 0:00:00]} Ra4 {[%emt 0:00:00]} 52. Rc3 {[%emt 0:00:00]} h4 {[%emt 0:00:00]} 53. Rc2 {[%emt 0:00:00]} Ra3 {[%emt 0:00:00]} 54. Be2 {[%emt 0:00:00]} Bd4 {[%emt 0:00:00]} 55. Rd2 {[%emt 0:00:00]} h3+ {[%emt 0:00:00]} 56. Kg1 {[%emt 0:00:00] [#]} Be5 {[%emt 0:00:00] Black is more active.} 57. Rd3 {[%emt 0:01:37]} Ra2 {[%emt 0:00:00]} ({But not} 57... Ra1+ $6 58. Rd1 $11) 58. Re3 $2 {[%emt 0:02:35][%mdl 8192]} (58. Bf3 $17) 58... Ra1+ {[%emt 0:00:00] Weighted Error Value: White=0.27 (precise) /Black=0.10 (very precise) .  Loses game:     	White=1     	---        Mistake:       	White=2     	Black=3      Inaccurate:     	White=4     	Black=2      OK:         	White=19    	Black=16     Best:        	White=3     	Black=6      Strong:       	---       	Black=1} 0-1